[Event "FIDE World School-ch G-17 2025"]
[Site "Vrnjacka Banja"]
[Date "2025.03.24"]
[Round "5.1"]
[White "Wang, Chloe Heather"]
[Black "Buyankhishig, Batpelden"]
[Result "0-1"]
[Annotator "TA"]
[ECO "C92"]
[WhiteElo "1892"]
[BlackElo "1907"]
[PlyCount "76"]
[EventDate "2025.03.19"]
[EventType "swiss"]
[EventCountry "SRB"]
[SourceTitle "playchess.com"]
[Source "ChessBase"]
[SourceQuality "1"]
[TimeControl "5400+30"]

{[%evp 22,76,35,0,5,7,0,3,12,6,2,8,10,-14,21,14,35,32,32,32,41,45,38,25,38,0,0,0,19,13,4,-7,0,0,0,-20,-28,-47,-36,-67,-61,-72,-51,-79,-83,-63,-67,-91,-73,-118,-159,-147,-143,-243,-219,-1312,-1116]} 1. e4 {[%emt 0:00:03]} e5 {[%emt 0:02:21]} 2. Nf3 {[%emt 0:00:09]} Nc6 {[%emt 0:00:07]} 3. Bb5 {[%emt 0:00:09]} a6 {[%emt 0:00:14]} 4. Ba4 {[%emt 0:00:07]} Nf6 {[%emt 0:00:08]} 5. O-O {[%emt 0:00:24]} Be7 {[%emt 0:00:40]} 6. Re1 {[%emt 0:00:14]} b5 {[%emt 0:00:08]} 7. Bb3 {[%emt 0:00:07]} d6 {[%emt 0:00:08]} 8. c3 {[%emt 0:00:08]} O-O {[%emt 0:00:48]} 9. h3 {[%emt 0:00:21]} Bb7 {[%emt 0:01:05]} 10. d4 {[%emt 0:02:11]} Re8 {[%emt 0:00:23]} 11. Nbd2 {[%emt 0:03:15]} Bf8 {[%emt 0:01:22]} 12. a4 {[%emt 0:07:05]} Na5 {[%emt 0:02:17] C92: Closed Ruy Lopez: 9...Be6, Karpov and Flohr-Zaitsev Variations.} 13. Bc2 {[%emt 0:01:21] 13.Ba2 is not played anymore.} exd4 {[%emt 0:01:05]} 14. cxd4 {[%emt 0:00:39]} b4 {[%emt 0:00:19] The position is equal.} 15. b3 {[%emt 0:05:13]} g6 {[%emt 0:01:16]} 16. Bb2 {[%emt 0:03:44]} Bg7 {[%emt 0:00:52]} 17. Bd3 {[%emt 0:18:02]} Nd7 {[%emt 0:03:52]} 18. Qc2 {[%emt 0:02:59]} c5 $146 {[%emt 0:08:46]} ({Predecessor:} 18... d5 19. Rac1 dxe4 20. Bxe4 Bxe4 21. Nxe4 Nf6 22. Nxf6+ Qxf6 {1-0 Aizenberg,B (2433)-Tifferet,S (2286) ISR-chT Israel 2025 (4.1)}) 19. d5 {[%emt 0:03:38]} Bxb2 {[%emt 0:09:17]} 20. Qxb2 {[%emt 0:00:10]} Qf6 {[%emt 0:00:17]} 21. Qxf6 {[%emt 0:08:55]} Nxf6 {[%emt 0:00:08]} 22. Nh2 {[%emt 0:12:56]} Re7 {[%emt 0:07:29]} 23. Nhf1 {[%emt 0:07:07]} Rae8 {[%emt 0:08:37][%cal Ob7d5] Hoping for ...Bxd5!.} 24. Re3 {[%emt 0:06:00]} Kg7 {[%emt 0:08:03]} 25. Rae1 {[%emt 0:02:18]} h5 {[%emt 0:03:41]} 26. g3 {[%emt 0:01:13]} Nd7 {[%emt 0:03:24][%cal Bf6d7,Bd7b6,Bb6d5,Bd5c3][%mdl 32]} 27. f4 {[%emt 0:01:35]} f6 {[%emt 0:03:18]} 28. R3e2 {[%emt 0:02:34]} Nb6 {[%emt 0:10:42][%cal Oa5b3]} 29. Ne3 {[%emt 0:00:40] [#]} f5 $1 {[%emt 0:03:16]} 30. exf5 {[%emt 0:01:51]} (30. Nec4 Naxc4) 30... Nxd5 {[%emt 0:00:10] Black is more active.} 31. Nec4 {[%emt 0:04:03]} (31. Nxd5 $2 Rxe2 32. Rxe2 Rxe2 33. Bxe2 Bxd5 34. Bxa6 gxf5 $19 (34... Bxb3 35. Nxb3 Nxb3 36. fxg6 $17)) 31... Rxe2 {[%emt 0:00:40]} 32. Rxe2 {[%emt 0:00:04]} Rxe2 {[%emt 0:00:09]} 33. Bxe2 {[%emt 0:00:02]} Nxc4 {[%emt 0:01:27]} 34. Nxc4 $17 {[%emt 0:00:14] KBN-KBN} Nc3 {[%emt 0:01:50]} (34... gxf5 $2 {perishes.} 35. Nxd6 Bc6 36. Bxa6 $18 (36. Nxf5+ Kf6 $14)) 35. Bd3 {[%emt 0:01:36] [#]} Be4 $1 {[%emt 0:07:26]} 36. Bxe4 {[%emt 0:00:36]} Nxe4 {[%emt 0:00:04]} 37. fxg6 {[%emt 0:00:11]} (37. g4 $17 {is the only way for White.}) 37... d5 $1 $19 {[%emt 0:02:23]} 38. Nb6 {[%emt 0:02:18] [#]} (38. Na5 Nxg3 (38... Kxg6 39. Kg2 $17) 39. Kf2 Ne4+ 40. Ke1 Kxg6 41. Ke2) 38... c4 $1 {[%emt 0:02:24] Weighted Error Value: White=0.43/Black=0.05 (flawless)   Mistake:       	White=2     	---        Inaccurate:     	White=4     	Black=1      OK:         	White=6     	Black=8      Best:        	White=3     	Black=4      Strong:       	---       	Black=3      Brilliant:      	---       	Black=1} 0-1

[Event "FIDE World School-ch G-17 2025"]
[Site "Vrnjacka Banja"]
[Date "2025.03.24"]
[Round "5.2"]
[White "Kirtadze, Anastasia"]
[Black "Altynbek, Aiaru"]
[Result "0-1"]
[Annotator "TA"]
[ECO "C88"]
[WhiteElo "2180"]
[BlackElo "2005"]
[PlyCount "190"]
[EventDate "2025.03.19"]
[EventType "swiss"]
[EventCountry "SRB"]
[SourceTitle "playchess.com"]
[Source "ChessBase"]
[SourceQuality "1"]
[TimeControl "5400+30"]

{[%evp 14,190,36,28,45,52,35,45,48,46,62,52,37,56,64,58,45,52,56,55,61,38,40,40,40,40,41,47,40,53,51,38,65,56,70,50,46,39,65,22,22,22,23,23,24,24,24,24,36,41,48,31,32,32,35,42,43,18,33,0,0,0,33,33,33,33,33,33,33,0,6,0,33,33,33,33,33,33,33,33,33,33,33,33,33,33,33,33,33,33,33,33,33,33,33,33,33,33,33,33,33,33,33,33,33,33,33,33,33,33,33,33,49,33,33,33,33,33,33,12,12,12,18,18,11,11,33,-5057,11,11,12,16,18,0,13,0,0,0,18,18,19,0,0,0,0,0,12,18,196,189,181,177,174,0,87,0,0,0,0,0,0,0,0,0,0,0,0,-29980,-29981,-29981,-29982,-29984,-29985,-29985,-29986,-29986,-29987,-29987,-29988]} 1. e4 {[%emt 0:00:02]} e5 {[%emt 0:00:15]} 2. Nf3 {[%emt 0:01:20]} Nc6 {[%emt 0:00:14]} 3. Bb5 {[%emt 0:03:10]} a6 {[%emt 0:00:21]} 4. Ba4 {[%emt 0:00:08]} Nf6 {[%emt 0:00:18]} 5. O-O {[%emt 0:00:11]} Be7 {[%emt 0:00:17]} 6. Re1 {[%emt 0:00:20]} b5 {[%emt 0:00:15]} 7. Bb3 {[%emt 0:00:08]} O-O {[%emt 0:00:30]} 8. a4 {[%emt 0:07:06][%cal Ba2a4,Ba4b5][%mdl 32]} Na5 {[%emt 0:01:30] C88: Closed Ruy Lopez: Anti-Marshall Systems.} 9. axb5 {[%emt 0:17:22]} Nxb3 {[%emt 0:00:22]} 10. cxb3 {[%emt 0:00:07]} Bb7 {[%emt 0:00:46] White is slightly better.} 11. bxa6 {[%emt 0:03:42]} (11. Nxe5 axb5 12. Rxa8 Qxa8 $11) 11... d5 {[%emt 0:01:23]} 12. d4 {[%emt 0:12:12]} (12. axb7 Rxa1 13. Nxe5 Qd6 (13... Rxb1 14. Nc6 $16) 14. exd5 Qxd5 $17 (14... Rxb1 15. Qc2 $16)) 12... dxe4 {[%emt 0:14:29]} 13. Nxe5 {[%emt 0:06:00]} Rxa6 {[%emt 0:02:58]} 14. Rxa6 {[%emt 0:02:07]} Bxa6 {[%emt 0:00:01]} 15. Nc6 {[%emt 0:05:42]} Qd7 {[%emt 0:01:25]} 16. Nxe7+ {[%emt 0:00:05]} Qxe7 {[%emt 0:00:06]} 17. Bg5 {[%emt 0:01:30]} h6 {[%emt 0:00:52]} 18. Bxf6 {[%emt 0:03:02]} Qxf6 {[%emt 0:00:19]} 19. Nc3 {[%emt 0:07:45]} Bd3 {[%emt 0:02:01]} 20. Nxe4 {[%emt 0:10:17]} Qxd4 {[%emt 0:03:57][%cal Of8d8] [#]} 21. Nc5 $1 {[%emt 0:02:46]} Qxc5 {[%emt 0:01:37]} 22. Qxd3 $14 {[%emt 0:00:09][%mdl 4096] Endgame KQR-KQR. White is a pawn up.} Qb4 $146 {[%emt 0:06:27]} (22... Rb8 23. g3 g6 24. Qe3 Qb4 25. Rc1 Qxb3 26. Qxh6 Qxb2 27. Rxc7 Qa1+ 28. Rc1 Rb1 29. Rxb1 Qxb1+ 30. Kg2 Qe4+ {½-½ Velpula,S (2384)-Tan,Z (2545) Belt and Road Shaoxing 6th 2024 (2)}) 23. Re3 {[%emt 0:16:49]} Ra8 {[%emt 0:01:26]} 24. Qd1 {[%emt 0:00:00] Prevents Ra1.} Qd6 {[%emt 0:17:16]} 25. Qe1 {[%emt 0:00:00]} Rd8 {[%emt 0:04:39]} 26. Re8+ {[%emt 0:00:00]} Rxe8 {[%emt 0:00:44]} 27. Qxe8+ $11 {[%emt 0:00:00] KQ-KQ. White is a pawn up.} Kh7 {[%emt 0:00:06] ( -> ...Qd1+)} 28. Qe4+ {[%emt 0:00:00]} (28. Qxf7 $2 Qd1#) 28... g6 {[%emt 0:00:24]} 29. Qc2 {[%emt 0:00:00] Inhibits Qd1+.} h5 {[%emt 0:00:41]} 30. h3 {[%emt 0:00:00]} Qe5 {[%emt 0:02:10]} 31. Qc3 {[%emt 0:00:19]} Qd6 {[%emt 0:00:14]} 32. Qc4 {[%emt 0:02:12]} Kg8 {[%emt 0:00:51]} 33. g3 {[%emt 0:00:56]} Qe5 {[%emt 0:05:43]} 34. Qc3 {[%emt 0:00:46]} Qd6 {[%emt 0:00:07]} 35. Kg2 {[%emt 0:00:21]} Qd5+ {[%emt 0:00:19]} 36. Qf3 {[%emt 0:00:54]} Qd4 {[%emt 0:00:48]} 37. Qc3 {[%emt 0:00:17]} Qd5+ {[%emt 0:00:06]} 38. Kh2 {[%emt 0:00:07]} Qf5 {[%emt 0:01:09]} 39. Qd4 {[%emt 0:00:21]} (39. Qxc7 Qxf2+ 40. Kh1 Qf1+ (40... Qxb2 41. Qc4 $17) 41. Kh2 Qe2+ 42. Kg1 Qxb2 43. Qd8+ Kg7 $15) 39... c5 {[%emt 0:00:57]} 40. Qd2 {[%emt 0:00:26]} Qe4 {[%emt 0:00:41]} 41. Qc3 {[%emt 0:00:56]} Qf5 {[%emt 0:00:53]} 42. Qd2 {[%emt 0:01:04]} Qe4 {[%emt 0:00:20]} 43. h4 {[%emt 0:00:22]} Qf3 {[%emt 0:03:59]} 44. Qc2 {[%emt 0:00:29]} Qd5 {[%emt 0:00:21]} 45. Qc4 {[%emt 0:00:31]} Qd6 {[%emt 0:00:24]} 46. Kg2 {[%emt 0:00:18]} Kf8 {[%emt 0:00:57]} 47. Qe4 {[%emt 0:00:37]} Qb6 {[%emt 0:01:10]} 48. Qd5 {[%emt 0:00:18]} Qb4 {[%emt 0:00:15]} 49. Kf1 {[%emt 0:00:34]} Qb5+ {[%emt 0:01:13]} 50. Ke1 {[%emt 0:00:22]} Qb4+ {[%emt 0:00:18]} 51. Kd1 {[%emt 0:00:24]} Kg8 {[%emt 0:02:36]} 52. Kc2 {[%emt 0:00:42]} Qb5 {[%emt 0:00:33]} 53. Qd8+ {[%emt 0:00:35]} Kh7 {[%emt 0:00:59]} 54. Qe7 {[%emt 0:00:46]} Kg8 {[%emt 0:00:25]} 55. Qe3 {[%emt 0:00:27]} Qc6 {[%emt 0:01:27]} 56. Qf4 {[%emt 0:00:27]} Qe6 {[%emt 0:01:37]} 57. Kc3 {[%emt 0:00:45]} Qe1+ {[%emt 0:00:16]} 58. Qd2 {[%emt 0:00:23]} Qe4 {[%emt 0:00:20]} 59. Qe3 {[%emt 0:00:30]} Qb4+ {[%emt 0:00:27]} 60. Kc2 {[%emt 0:00:05]} Qb5 {[%emt 0:00:37]} 61. Qe4 {[%emt 0:00:52]} Qa5 {[%emt 0:02:16]} 62. Qe8+ {[%emt 0:00:39]} Kg7 {[%emt 0:00:05]} 63. Qe3 {[%emt 0:00:35] and Qc3+ should not be overlooked} Kg8 {[%emt 0:00:32]} 64. Qc3 {[%emt 0:00:13]} Qb5 {[%emt 0:00:36]} 65. Qc4 {[%emt 0:00:06]} Qa5 {[%emt 0:00:12]} 66. b4 {[%emt 0:01:11]} cxb4 {[%emt 0:03:54]} 67. Kb3 {[%emt 0:00:10]} Qb6 {[%emt 0:00:24]} 68. Qf4 {[%emt 0:00:43]} Qc5 {[%emt 0:02:31]} 69. Qe3 {[%emt 0:00:30]} Qd6 {[%emt 0:01:28]} 70. Qf4 $2 {[%emt 0:00:35][%mdl 8192]} (70. Kc4 $14) 70... Qc5 $2 {[%emt 0:00:29]} (70... Qxf4 $19 71. gxf4 f6) 71. Qf3 {[%emt 0:00:34]} Qd6 {[%emt 0:00:20]} 72. Qe3 {[%emt 0:00:25]} Qf6 {[%emt 0:00:44]} 73. Qd2 {[%emt 0:00:28]} Qb6 {[%emt 0:00:26]} 74. f4 {[%emt 0:00:39]} Qg1 {[%emt 0:00:44]} 75. Qd3 {[%emt 0:00:22]} Qc1 {[%emt 0:00:24]} 76. Qd8+ {[%emt 0:00:32]} Kh7 {[%emt 0:01:16]} 77. Qe7 {[%emt 0:00:18]} Qd1+ {[%emt 0:01:22]} 78. Kxb4 {[%emt 0:00:21]} Qd2+ {[%emt 0:01:23]} 79. Ka3 {[%emt 0:00:42]} Qd3+ {[%emt 0:00:40]} 80. b3 {[%emt 0:00:23]} Qxg3 $2 {[%emt 0:00:09]} (80... Kg7 $11) 81. Qxf7+ $18 {[%emt 0:00:05]} Kh6 {[%emt 0:00:08] [#]} 82. Qf6 $1 {[%emt 0:01:10]} Kh7 {[%emt 0:00:18] [#] Prevents Qh8+} 83. Qf7+ {[%emt 0:00:26]} (83. f5 $1 $18 {White wants to mate with Qe7+.} gxf5 84. Qxf5+ Kg7 85. Qd7+ (85. Qxh5 Qd6+ 86. b4 Qd3+ 87. Ka4 Qc2+ 88. Ka5 Qc7+ 89. Kb5 Qb7+ 90. Kc5 Qe7+ 91. Kc4 Qe4+ 92. Kb3 Qd3+ 93. Kb2 Qd2+ 94. Kb3 Qd3+ 95. Ka4 Qa6+ 96. Qa5 Qc6+ 97. Kb3 Qe6+ 98. Kc3 Qe1+ 99. Kc4 Qxh4+ 100. Kb5 Kh8 $16) 85... Kf6 86. Qd8+ Kf7 87. Qd5+ Ke7 88. Qd4 (88. Qxh5 Qd6+ 89. Ka4 Qd4+ 90. b4 Qd7+ 91. Qb5 Qa7+ 92. Kb3 Qe3+ 93. Kc4 Qf4+ 94. Kb3 Qe3+ 95. Kc2 Qf2+ 96. Kc3 Qxh4 $11)) 83... Kh6 $16 {[%emt 0:00:07]} 84. Qg8 {[%emt 0:00:16]} ({White should play} 84. Qf8+ $16 Kh7 85. Qf7+) 84... Qc3 $1 $11 {[%emt 0:00:26]} 85. Qf8+ {[%emt 0:00:37]} Kh7 {[%emt 0:00:03]} 86. Qe7+ {[%emt 0:00:13]} Kh6 {[%emt 0:00:16]} 87. Qg5+ {[%emt 0:01:05]} Kh7 {[%emt 0:00:03]} 88. Qe5 {[%emt 0:00:28]} ({Resist} 88. Qe7+ $6 Kg8 $16) 88... Qxe5 {[%emt 0:05:28]} 89. fxe5 {[%emt 0:00:02]} g5 {[%emt 0:00:08]} 90. hxg5 $2 {[%emt 0:00:55][%mdl 8192] KP-KP. White is two pawns up.} (90. e6 $11 Kg7 91. b4 (91. hxg5 $2 {is the wrong capture.} h4 $19)) 90... h4 {[%emt 0:00:08] Black mates.} 91. e6 {[%emt 0:00:15]} Kg7 {[%emt 0:00:20]} 92. g6 {[%emt 0:00:37]} Kxg6 {[%emt 0:00:18]} 93. b4 {[%emt 0:00:09]} h3 {[%emt 0:00:08]} 94. e7 {[%emt 0:00:08]} Kf7 {[%emt 0:00:07]} 95. b5 {[%emt 0:00:01]} h2 {[%emt 0:00:08] Both players deserved the win here.   Weighted Error Value: White=0.04 (flawless) /Black=0.03 (flawless)   Loses game:     	White=2     	Black=1      Missed win:     	---       	Black=1      Mistake:       	White=2     	---        Inaccurate:     	White=3     	Black=2      OK:         	White=37    	Black=37     Best:        	White=3     	Black=9      Strong:       	White=1     	Black=1} 0-1

[Event "FIDE World School-ch G-17 2025"]
[Site "Vrnjacka Banja"]
[Date "2025.03.24"]
[Round "5.3"]
[White "Seyhan, Pelin"]
[Black "Maslova, Anastasiya Yar"]
[Result "1-0"]
[Annotator "TA"]
[ECO "D03"]
[WhiteElo "1924"]
[BlackElo "1938"]
[PlyCount "91"]
[EventDate "2025.03.19"]
[EventType "swiss"]
[EventCountry "SRB"]
[SourceTitle "playchess.com"]
[Source "ChessBase"]
[SourceQuality "1"]
[TimeControl "5400+30"]

{[%evp 12,91,1,1,24,25,42,41,58,50,70,86,80,76,70,62,92,83,121,127,123,106,98,69,143,136,144,141,149,104,141,148,146,163,153,116,108,131,217,199,233,221,274,264,264,246,269,247,312,312,322,300,427,341,479,333,442,486,992,989,1219,1210,1151,1150,1015,935,935,925,1051,1032,998,965,29983,29984,29984,29985,6299,972,29991,29992,29992,29992]} 1. d4 {[%emt 0:00:03]} d5 {[%emt 0:00:26]} 2. Nf3 {[%emt 0:00:06]} Nf6 {[%emt 0:00:37]} 3. c3 {[%emt 0:00:06]} e6 {[%emt 0:01:39]} 4. Bg5 {[%emt 0:00:31]} c5 {[%emt 0:04:32]} 5. e3 {[%emt 0:01:14]} Nc6 {[%emt 0:02:28]} 6. Nbd2 {[%emt 0:01:17]} h6 {[%emt 0:02:47]} 7. Bh4 {[%emt 0:05:19]} g5 {[%emt 0:02:23] D03: 1 d4 d5 2 Nf3 Nf6 3 Bg5, including Torre Attack with early ...d5.} 8. Bg3 {[%emt 0:00:06]} Qb6 {[%emt 0:04:24]} 9. Rb1 {[%emt 0:10:05]} Nh5 {[%emt 0:03:28] White is slightly better.} 10. Be5 $1 {[%emt 0:04:50]} Nxe5 {[%emt 0:05:53]} 11. Nxe5 {[%emt 0:00:06]} Nf6 {[%emt 0:01:14]} 12. Qf3 $146 {[%emt 0:01:59]} (12. Bd3 Bg7 13. O-O Nd7 14. Qa4 Ke7 15. f4 gxf4 16. exf4 cxd4 17. cxd4 Nxe5 18. fxe5 Bxe5 {0-1 Artemiev,V (2671)-Ponkratov,P (2610) RUS-ch blitz 2015 (4)}) 12... Bg7 {[%emt 0:05:51]} 13. Bd3 {[%emt 0:06:49]} Rf8 {[%emt 0:10:06]} 14. h4 {[%emt 0:06:14]} Qd8 {[%emt 0:14:12]} 15. hxg5 {[%emt 0:10:16]} hxg5 {[%emt 0:00:16]} 16. dxc5 {[%emt 0:02:33] White has more active pieces. The black rooks are passive.} Qc7 {[%emt 0:09:16]} 17. Bb5+ {[%emt 0:04:41][%cal Bd3b5,Bb5d7,Bd7e6,Be6f5][%mdl 32]} (17. Ng4 {simplifies} Nxg4 18. Qxg4 Bf6 19. Nf3) 17... Bd7 {[%emt 0:04:29] [#]} (17... Kd8 $14 18. Ng4 (18. Qg3 Nd7 $14) 18... Ke7) 18. Nxd7 $1 $16 {[%emt 0:00:34]} Nxd7 {[%emt 0:00:23]} 19. Rh7 $36 {[%emt 0:03:52][%mdl 2048] Black is under strong pressure.} Be5 {[%emt 0:04:02][%cal Oe8c8]} 20. Nb3 {[%emt 0:09:35]} O-O-O {[%emt 0:12:39]} 21. Rxf7 {[%emt 0:01:56]} g4 {[%emt 0:00:11]} 22. Bxd7+ {[%emt 0:06:11]} (22. Qxg4 Rxf7 23. Qxe6 Rf6 $17) 22... Kb8 {[%emt 0:00:16]} 23. Qxg4 {[%emt 0:01:23]} Rxf7 {[%emt 0:00:24]} 24. Bxe6 {[%emt 0:00:05]} Rg7 {[%emt 0:00:43]} (24... Rf6 $16) 25. Qf3 $18 {[%emt 0:00:54]} Rh7 {[%emt 0:04:19] [#]} 26. Kd2 {[%emt 0:04:35][%cal Be1d2,Bd2c2,Bc2b1][%mdl 32]} (26. Bxd5 $2 Rh1+ 27. Kd2 Rxb1 $19) 26... Qe7 {[%emt 0:01:19]} 27. Bf5 {[%emt 0:03:25]} (27. Bxd5 Rf7 28. Qe4 Rxf2+ 29. Kd3 (29. Kc1 $2 Rh8 $19) 29... Qg5 $16) 27... Rh2 {[%emt 0:01:26]} 28. Rg1 {[%emt 0:07:22]} Rf8 {[%emt 0:01:05]} 29. Kc2 {[%emt 0:01:09]} Qh4 {[%emt 0:02:03]} 30. Nd4 {[%emt 0:01:25]} Qf6 {[%emt 0:01:30] ...Bxd4 would now be deadly.} 31. g4 {[%emt 0:00:47]} (31. Qxd5 Bxd4 32. Be4 Qa6 (32... Qxf2+ $2 33. Kb3 $18)) 31... Qa6 {[%emt 0:00:38]} (31... a6 $142 32. g5 (32. Qxd5 Rxf2+ 33. Kb3 Rd8 $18) 32... Qe7) 32. Kb1 {[%emt 0:02:29]} (32. Qxd5 Rxf2+ 33. Kc1 Bxd4 34. Qxd4 (34. exd4 Rf1+ 35. Rxf1 Qxf1+ 36. Kd2 Qf2+ 37. Kd3 Qf1+ 38. Kd2 Qf2+ 39. Kd3 Qf1+ 40. Ke3 Qg1+ 41. Kf4 Qc1+ 42. Ke4 Qh1+ 43. Ke5 Qh2+ 44. Ke4 Qh1+ 45. Ke5 Qh2+ 46. Ke4 Qg2+ 47. Ke5 Qh2+ $11) 34... Re8 $18) 32... Qf6 {[%emt 0:00:53]} (32... Qc4 {was worth a try.} 33. Ne6 Rfh8) 33. Rh1 {[%emt 0:01:10]} ({Don't play} 33. Qxd5 Rxf2 34. Be4 Qe7 $18) 33... Rfh8 {[%emt 0:00:27]} 34. Rxh2 {[%emt 0:00:02]} Rxh2 {[%emt 0:00:08]} (34... Bxh2 $142 35. Qxd5 Qe5 36. Qxe5+ Bxe5) 35. Qxd5 {[%emt 0:00:14]} a6 {[%emt 0:00:59]} 36. Be4 {[%emt 0:01:07][%csl Ge4][%cal Rd5b7]} Qe7 {[%emt 0:00:31]} 37. Nf5 {[%emt 0:00:42]} Qc7 {[%emt 0:00:23]} 38. Nd6 {[%emt 0:00:17]} Bxd6 {[%emt 0:00:33]} 39. cxd6 {[%emt 0:00:05][%mdl 4096] Endgame KQR-KQB} Qd7 {[%emt 0:00:04]} 40. Bf5 {[%emt 0:00:37]} Qd8 {[%emt 0:00:08]} 41. d7 {[%emt 0:00:53] Threatening mate with Qe5+.} Rxf2 {[%emt 0:00:28]} 42. Qe5+ {[%emt 0:00:22]} Ka7 {[%emt 0:00:16]} 43. Qc5+ {[%emt 0:00:10]} b6 {[%emt 0:00:24]} 44. Qc8 {[%emt 0:00:16]} (44. Qd5 $142 Rf1+ 45. Kc2 Rf2+ 46. Kb3 Rxf5 47. gxf5) 44... Rf1+ {[%emt 0:00:23]} 45. Kc2 {[%emt 0:00:03]} Rf2+ {[%emt 0:00:05]} 46. Kd3 {[%emt 0:00:21] Weighted Error Value: White=0.17 (very precise) /Black=0.65  Mistake:       	---       	Black=5      Inaccurate:     	White=2     	Black=4      OK:         	White=14    	Black=3      Best:        	White=2     	Black=2      Strong:       	White=1     	---} 1-0

[Event "FIDE World School-ch G-17 2025"]
[Site "Vrnjacka Banja"]
[Date "2025.03.24"]
[Round "5.4"]
[White "Newansa, M Esandi"]
[Black "Jankovic, Tamara"]
[Result "1-0"]
[Annotator "TA"]
[ECO "A45"]
[WhiteElo "1801"]
[BlackElo "1900"]
[PlyCount "93"]
[EventDate "2025.03.19"]
[EventType "swiss"]
[EventCountry "SRB"]
[SourceTitle "playchess.com"]
[Source "ChessBase"]
[SourceQuality "1"]
[TimeControl "5400+30"]

{[%evp 9,93,-18,34,26,29,33,27,0,4,-6,8,2,32,0,16,-9,-12,-19,-2,-10,-1,-18,0,0,0,-6,19,-13,49,25,66,-8,51,0,75,12,15,14,27,16,35,28,100,0,0,0,97,84,133,130,132,141,275,198,196,126,235,222,260,277,235,262,250,218,231,229,237,218,227,215,227,211,250,246,247,239,287,275,359,335,395,416,992,992,5322,5322]} 1. d4 {[%emt 0:01:13]} Nf6 {[%emt 0:00:09]} 2. Bf4 {[%emt 0:00:10]} c5 {[%emt 0:00:24]} 3. dxc5 {[%emt 0:00:08]} Na6 {[%emt 0:00:25]} 4. Qd4 {[%emt 0:00:13]} Qa5+ {[%emt 0:03:06]} 5. Nc3 {[%emt 0:00:13]} Qxc5 {[%emt 0:01:05]} (5... Nxc5 $11 6. Bd2 Ne6) 6. e3 $14 {[%emt 0:00:49] A45: Trompowsky Attack.} Qxd4 {[%emt 0:03:22]} 7. exd4 {[%emt 0:00:09]} d6 {[%emt 0:01:59]} 8. Bxa6 $146 {[%emt 0:04:25] White has an edge.} (8. O-O-O Nc7 9. Bc4 e6 10. Nf3 Be7 11. Rhe1 Nh5 12. Be3 d5 13. Bd3 O-O 14. g4 {1-0 Bauer,C (2632)-Lever,E (2258) Vandoeuvre op 16th 2019 (2)}) 8... bxa6 {[%emt 0:00:05]} 9. Nge2 {[%emt 0:00:52]} g6 {[%emt 0:02:31]} 10. Bg5 {[%emt 0:03:13]} Nh5 {[%emt 0:05:03]} 11. Nd5 {[%emt 0:03:21]} Kd7 {[%emt 0:01:32] Repels Nc7. Black is weak on the dark squares} 12. Nec3 {[%emt 0:06:01]} Bb7 {[%emt 0:02:49]} 13. f3 {[%emt 0:02:03]} h6 {[%emt 0:01:05]} 14. Be3 {[%emt 0:01:48] A sharp opening} Ng7 {[%emt 0:01:57]} 15. O-O-O {[%emt 0:00:49]} Nf5 {[%emt 0:00:56]} 16. Bf2 {[%emt 0:00:14]} h5 {[%emt 0:00:56]} 17. Rhe1 {[%emt 0:01:18]} Bh6+ {[%emt 0:02:30]} 18. Kb1 {[%emt 0:00:23]} Bg5 {[%emt 0:05:52]} ({Better is} 18... h4 $11) 19. Ne4 {[%emt 0:10:32]} (19. Ne3 Rac8 20. d5 Nxe3 21. Bxe3 Bxe3 22. Rxe3 h4 23. Re4) 19... Bh6 {[%emt 0:10:45] This pair of bishops is nice.} 20. Nec3 {[%emt 0:07:26]} (20. Ndc3 $14) 20... Bg5 {[%emt 0:19:19]} (20... h4 $11) 21. Ne4 {[%emt 0:05:24]} (21. Ne3 {simplifies} Nxe3 22. Bxe3 Bxe3 23. Rxe3 Rac8 24. Ne4) 21... Bh6 {[%emt 0:10:21]} 22. Nb4 {[%emt 0:01:37]} (22. Ne3 $16) 22... a5 $11 {[%emt 0:01:04]} 23. Nd3 {[%emt 0:00:26]} h4 {[%emt 0:01:16]} 24. c4 {[%emt 0:07:08]} Rhc8 {[%emt 0:04:40][%cal Oh6g7]} 25. c5 {[%emt 0:02:01][%cal Od4d5]} Rab8 {[%emt 0:04:43]} (25... Bg7 $11) 26. cxd6 {[%emt 0:01:32]} (26. d5 $1 $16 {Strongly threatening c6+.} Bxd5 27. cxd6) 26... exd6 {[%emt 0:02:17]} 27. Nf6+ {[%emt 0:00:24]} Kc6 {[%emt 0:05:11]} (27... Kc7 $11 {keeps the balance.}) 28. d5+ $16 {[%emt 0:00:44] White stays focused until the end.} Kb5 {[%emt 0:00:15]} (28... Kc7 $142) 29. Bxa7 {[%emt 0:06:23] White is much more active.} Ra8 {[%emt 0:00:06]} 30. Bf2 {[%emt 0:00:16]} a4 {[%emt 0:04:25]} (30... Bg7 $16 31. Ne4 Bxd5) 31. a3 {[%emt 0:08:59]} Bg7 {[%emt 0:03:34] [#]} 32. Nd7 {[%emt 0:02:59]} ({White should try} 32. Ne4 $1 $18) 32... Rd8 {[%emt 0:01:37]} (32... Re8 $16) 33. Nb6 $18 {[%emt 0:00:19]} Ra6 {[%emt 0:00:07] [#]} 34. Re4 $1 {[%emt 0:00:14]} (34. g4 $6 hxg3 35. Re4 Bd4 36. Bxd4 Nxd4 $16) 34... Bd4 {[%emt 0:01:15]} 35. Bxd4 {[%emt 0:00:10]} Nxd4 {[%emt 0:00:03]} 36. Rxd4 $40 {[%emt 0:00:12][%mdl 128] Threatening mate with Rb4+. White wants a kill.} Kxb6 {[%emt 0:00:10]} 37. Nb4 {[%emt 0:00:13]} ({But not} 37. Rxh4 Bxd5 38. Nb4 Bb3 $18) 37... Ra5 {[%emt 0:00:40]} 38. Rxh4 {[%emt 0:00:09]} Re8 {[%emt 0:00:25]} 39. Re4 {[%emt 0:00:17]} Rxe4 {[%emt 0:01:22]} 40. fxe4 {[%emt 0:00:06][%mdl 4096] Endgame KRB-KRN. White is two pawns up.} Ra8 {[%emt 0:00:11]} 41. Kc2 {[%emt 0:00:27]} Rh8 {[%emt 0:00:36]} 42. h3 {[%emt 0:00:17]} Rh4 {[%emt 0:00:04]} 43. Kd3 {[%emt 0:00:07]} Rf4 {[%emt 0:00:25]} 44. Ke3 {[%emt 0:00:07]} Rf6 {[%emt 0:00:50]} 45. e5 {[%emt 0:00:14]} dxe5 {[%emt 0:00:57]} (45... Rf5 $142 46. exd6 Rf6) 46. d6 {[%emt 0:00:05]} Bc8 {[%emt 0:00:33]} 47. Nd5+ {[%emt 0:00:06] Weighted Error Value: White=0.20 (precise) /Black=0.53  Mistake:       	White=4     	Black=8      Inaccurate:     	White=2     	Black=4      OK:         	White=13    	Black=11     Best:        	White=5     	---        Strong:       	White=1     	---} 1-0